[Event "Titled Tuesday Blitz November 9 2021"]
[White "Preotu, Razvan"]
[Black "Bazeev, German"]
[WhiteFideId "2613280"]
[BlackFideId "24119350"]
[WhiteElo "2407"]
[BlackElo "2462"]
[Result "1-0"]
[Round "10"]
[TimeControl "180+1"]
[Date "2021.11.09"]
[WhiteClock "0:00:09"]
[BlackClock "0:00:03"]

1. e4 {[%clk 0:03:00]}  c6 {[%clk 0:03:00]} 2. Nc3 {[%clk 0:03:00]}  d5 {[%clk 0:03:00]} 3. Nf3 {[%clk 0:03:01]}  dxe4 {[%clk 0:03:01]} 4. Nxe4 {[%clk 0:03:02]}  Nf6 {[%clk 0:03:01]} 5. Qe2 {[%clk 0:03:03]}  Bg4 {[%clk 0:03:01]} 6. h3 {[%clk 0:02:53]}  Bh5 {[%clk 0:02:59]} 7. Nxf6+ {[%clk 0:02:43]}  gxf6 {[%clk 0:03:00]} 8. d3 {[%clk 0:02:40]}  e6 {[%clk 0:02:57]} 9. g4 {[%clk 0:02:38]}  Bg6 {[%clk 0:02:57]} 10. Bg2 {[%clk 0:02:38]}  Nd7 {[%clk 0:02:57]} 11. Bd2 {[%clk 0:02:25]}  Bd6 {[%clk 0:02:55]} 12. O-O-O {[%clk 0:02:16]}  Qc7 {[%clk 0:02:54]} 13. Kb1 {[%clk 0:02:04]}  O-O-O {[%clk 0:02:51]} 14. Nh4 {[%clk 0:02:04]}  Bf4 {[%clk 0:02:47]} 15. Bc3 {[%clk 0:02:02]}  Be5 {[%clk 0:02:43]} 16. Bxe5 {[%clk 0:01:52]}  Qxe5 {[%clk 0:02:23]} 17. Qe3 {[%clk 0:01:47]}  Qg5 {[%clk 0:02:02]} 18. Nxg6 {[%clk 0:01:36]}  hxg6 {[%clk 0:01:53]} 19. Qxa7 {[%clk 0:01:34]}  Qf4 {[%clk 0:01:38]} 20. d4 {[%clk 0:01:23]}  Kc7 {[%clk 0:01:33]} 21. Qa5+ {[%clk 0:01:22]}  Nb6 {[%clk 0:01:33]} 22. Qd2 {[%clk 0:00:42]}  Qxd2 {[%clk 0:01:08]} 23. Rxd2 {[%clk 0:00:43]}  Rh4 {[%clk 0:01:07]} 24. b3 {[%clk 0:00:33]}  f5 {[%clk 0:01:06]} 25. gxf5 {[%clk 0:00:30]}  gxf5 {[%clk 0:01:01]} 26. c3 {[%clk 0:00:29]}  Rg8 {[%clk 0:00:58]} 27. Rh2 {[%clk 0:00:27]}  Nd7 {[%clk 0:00:52]} 28. Kc2 {[%clk 0:00:27]}  Nf6 {[%clk 0:00:52]} 29. Kd1 {[%clk 0:00:25]}  Nh5 {[%clk 0:00:52]} 30. Ke1 {[%clk 0:00:18]}  Nf4 {[%clk 0:00:52]} 31. Kf1 {[%clk 0:00:18]}  Kd6 {[%clk 0:00:47]} 32. a4 {[%clk 0:00:18]}  b6 {[%clk 0:00:36]} 33. b4 {[%clk 0:00:18]}  Rh7 {[%clk 0:00:23]} 34. Ra2 {[%clk 0:00:17]}  Rhg7 {[%clk 0:00:23]} 35. f3 {[%clk 0:00:15]}  Nd5 {[%clk 0:00:23]} 36. Kf2 {[%clk 0:00:12]}  Nxc3 {[%clk 0:00:22]} 37. Ra3 {[%clk 0:00:13]}  Nd5 {[%clk 0:00:20]} 38. a5 {[%clk 0:00:13]}  Nxb4 {[%clk 0:00:19]} 39. axb6 {[%clk 0:00:12]}  Rb8 {[%clk 0:00:19]} 40. f4 {[%clk 0:00:04]}  Rxb6 {[%clk 0:00:17]} 41. Rb3 {[%clk 0:00:05]}  Rg8 {[%clk 0:00:07]} 42. Bf3 {[%clk 0:00:05]}  Ra8 {[%clk 0:00:07]} 43. h4 {[%clk 0:00:05]}  Ra2+ {[%clk 0:00:07]} 44. Kg3 {[%clk 0:00:06]}  Rxh2 {[%clk 0:00:04]} 45. Kxh2 {[%clk 0:00:07]}  c5 {[%clk 0:00:05]} 46. dxc5+ {[%clk 0:00:07]}  Kxc5 {[%clk 0:00:05]} 47. h5 {[%clk 0:00:07]}  Rb8 {[%clk 0:00:06]} 48. Kg3 {[%clk 0:00:07]}  Rh8 {[%clk 0:00:06]} 49. Kh4 {[%clk 0:00:07]}  f6 {[%clk 0:00:07]} 50. Rc3+ {[%clk 0:00:07]}  Kd4 {[%clk 0:00:06]} 51. Rc7 {[%clk 0:00:07]}  Ke3 {[%clk 0:00:04]} 52. Bb7 {[%clk 0:00:07]}  Kxf4 {[%clk 0:00:04]} 53. Rc4+ {[%clk 0:00:07]}  Ke3 {[%clk 0:00:01]} 54. Rxb4 {[%clk 0:00:08]}  f4 {[%clk 0:00:02]} 55. Rb6 {[%clk 0:00:08]}  e5 {[%clk 0:00:02]} 56. Rxf6 {[%clk 0:00:08]}  Rb8 {[%clk 0:00:01]} 57. Bc6 {[%clk 0:00:08]}  e4 {[%clk 0:00:02]} 58. Re6 {[%clk 0:00:08]}  Rb4 {[%clk 0:00:02]} 59. h6 {[%clk 0:00:08]}  f3 {[%clk 0:00:02]} 60. h7 {[%clk 0:00:08]}  f2 {[%clk 0:00:03]} 61. Rf6 {[%clk 0:00:09]}  Rb8 {[%clk 0:00:03]} 62. Kg5 {[%clk 0:00:09]}  Rh8 {[%clk 0:00:03]} 63. Kg6 {[%clk 0:00:09]}  Ke2 {[%clk 0:00:03]} 64. Bb5+ {[%clk 0:00:09]}  Ke3 {[%clk 0:00:03]} 65. Kg7 {[%clk 0:00:09]}  Rb8 {[%clk 0:00:03]} 66. h8=Q {[%clk 0:00:09]}  Rxb5 {[%clk 0:00:04]} 67. Qh6+ {[%clk 0:00:08]}  Ke2 {[%clk 0:00:04]} 68. Qf4 {[%clk 0:00:09]}  e3 {[%clk 0:00:03]} 69. Qc4+ {[%clk 0:00:09]}  Kd2 {[%clk 0:00:03]} 70. Qxb5 {[%clk 0:00:09]} 1-0


[Site "https://www.chess.com"]

[Event "Titled Tuesday Blitz November 9 2021"]
[White "Rustemov, Alexander"]
[Black "Shirazi, Kamran"]
[WhiteFideId "4119002"]
[BlackFideId "2000733"]
[WhiteElo "2785"]
[BlackElo "2317"]
[Result "1-0"]
[Round "10"]
[TimeControl "180+1"]
[Date "2021.11.09"]
[WhiteClock "0:00:57"]
[BlackClock "0:00:01"]

1. d4 {[%clk 0:03:00]}  c5 {[%clk 0:02:56]} 2. d5 {[%clk 0:02:59]}  e6 {[%clk 0:02:56]} 3. c4 {[%clk 0:02:59]}  b5 {[%clk 0:02:56]} 4. cxb5 {[%clk 0:02:54]}  a6 {[%clk 0:02:55]} 5. e4 {[%clk 0:02:50]}  axb5 {[%clk 0:02:54]} 6. Bxb5 {[%clk 0:02:49]}  Qa5+ {[%clk 0:02:55]} 7. Nc3 {[%clk 0:02:49]}  exd5 {[%clk 0:02:54]} 8. Qxd5 {[%clk 0:02:47]}  Nf6 {[%clk 0:02:52]} 9. Qd3 {[%clk 0:02:38]}  Nc6 {[%clk 0:02:49]} 10. Bxc6 {[%clk 0:02:37]}  dxc6 {[%clk 0:02:49]} 11. Ne2 {[%clk 0:02:26]}  Ba6 {[%clk 0:02:41]} 12. Qc2 {[%clk 0:02:24]}  Rd8 {[%clk 0:01:56]} 13. Bg5 {[%clk 0:02:13]}  Bd3 {[%clk 0:01:08]} 14. Qd2 {[%clk 0:02:13]}  Be7 {[%clk 0:01:04]} 15. e5 {[%clk 0:02:11]}  Nd5 {[%clk 0:00:50]} 16. Bxe7 {[%clk 0:02:10]}  Nxe7 {[%clk 0:00:48]} 17. O-O {[%clk 0:02:04]}  O-O {[%clk 0:00:45]} 18. Rfd1 {[%clk 0:02:01]}  Ng6 {[%clk 0:00:38]} 19. Qe3 {[%clk 0:01:58]}  c4 {[%clk 0:00:38]} 20. f4 {[%clk 0:01:53]}  Rfe8 {[%clk 0:00:36]} 21. b3 {[%clk 0:01:48]}  Qa6 {[%clk 0:00:33]} 22. Rd2 {[%clk 0:01:41]}  cxb3 {[%clk 0:00:29]} 23. Rad1 {[%clk 0:01:37]}  bxa2 {[%clk 0:00:28]} 24. Nxa2 {[%clk 0:01:31]}  Bxe2 {[%clk 0:00:23]} 25. Rxd8 {[%clk 0:01:29]}  Bxd1 {[%clk 0:00:23]} 26. Rxe8+ {[%clk 0:01:28]}  Nf8 {[%clk 0:00:24]} 27. Qc5 {[%clk 0:01:22]}  h5 {[%clk 0:00:22]} 28. Rxf8+ {[%clk 0:01:21]}  Kh7 {[%clk 0:00:23]} 29. Nc1 {[%clk 0:01:14]}  Qa4 {[%clk 0:00:19]} 30. Qe3 {[%clk 0:01:10]}  Qc4 {[%clk 0:00:11]} 31. Qd3+ {[%clk 0:01:08]}  Qxd3 {[%clk 0:00:11]} 32. Nxd3 {[%clk 0:01:09]}  Bb3 {[%clk 0:00:11]} 33. Nc5 {[%clk 0:01:08]}  Bd5 {[%clk 0:00:10]} 34. Kf2 {[%clk 0:01:08]}  g5 {[%clk 0:00:11]} 35. f5 {[%clk 0:01:05]}  Kg7 {[%clk 0:00:10]} 36. Rd8 {[%clk 0:01:03]}  g4 {[%clk 0:00:11]} 37. Rd6 {[%clk 0:01:03]}  Bc4 {[%clk 0:00:09]} 38. g3 {[%clk 0:01:03]}  Bd5 {[%clk 0:00:09]} 39. Ke3 {[%clk 0:01:03]}  Kf8 {[%clk 0:00:09]} 40. Kf4 {[%clk 0:01:03]}  Ke7 {[%clk 0:00:09]} 41. Kg5 {[%clk 0:01:03]}  f6+ {[%clk 0:00:09]} 42. Rxf6 {[%clk 0:01:03]}  Bg2 {[%clk 0:00:08]} 43. Rd6 {[%clk 0:01:02]}  Bd5 {[%clk 0:00:07]} 44. f6+ {[%clk 0:01:03]}  Kf7 {[%clk 0:00:07]} 45. e6+ {[%clk 0:01:02]}  Kg8 {[%clk 0:00:07]} 46. Rd8+ {[%clk 0:00:58]}  Kh7 {[%clk 0:00:01]} 47. e7 {[%clk 0:00:57]} 1-0


[Site "https://www.chess.com"]

[Event "Titled Tuesday Blitz November 9 2021"]
[White "Siva Mahadevan"]
[Black "Holt, Conrad"]
[WhiteFideId "25043153"]
[BlackFideId "2034387"]
[WhiteElo "2203"]
[BlackElo "2586"]
[Result "1-0"]
[Round "10"]
[TimeControl "180+1"]
[Date "2021.11.09"]
[WhiteClock "0:00:11"]
[BlackClock "0:00:02"]

1. e4 {[%clk 0:03:00]}  e6 {[%clk 0:02:59]} 2. d4 {[%clk 0:03:01]}  d5 {[%clk 0:03:00]} 3. Nd2 {[%clk 0:03:01]}  c5 {[%clk 0:02:57]} 4. exd5 {[%clk 0:03:00]}  Qxd5 {[%clk 0:02:56]} 5. dxc5 {[%clk 0:03:01]}  Qxc5 {[%clk 0:02:57]} 6. Ngf3 {[%clk 0:03:00]}  Nf6 {[%clk 0:02:56]} 7. Bd3 {[%clk 0:02:59]}  Nbd7 {[%clk 0:02:55]} 8. O-O {[%clk 0:02:59]}  Qc7 {[%clk 0:02:52]} 9. Qe2 {[%clk 0:02:57]}  Be7 {[%clk 0:02:50]} 10. b3 {[%clk 0:02:55]}  O-O {[%clk 0:02:41]} 11. Bb2 {[%clk 0:02:54]}  Nd5 {[%clk 0:02:41]} 12. g3 {[%clk 0:02:40]}  Nc3 {[%clk 0:02:30]} 13. Qe3 {[%clk 0:02:39]}  Bf6 {[%clk 0:02:27]} 14. Rae1 {[%clk 0:02:34]}  g6 {[%clk 0:02:13]} 15. Nd4 {[%clk 0:02:08]}  Qc5 {[%clk 0:01:40]} 16. N2f3 {[%clk 0:01:39]}  Nb6 {[%clk 0:01:28]} 17. Bxc3 {[%clk 0:01:23]}  Qxc3 {[%clk 0:01:27]} 18. Nb5 {[%clk 0:01:23]}  Qb4 {[%clk 0:01:16]} 19. c4 {[%clk 0:01:18]}  Bd7 {[%clk 0:01:06]} 20. Nbd4 {[%clk 0:01:12]}  Rfd8 {[%clk 0:01:00]} 21. Ne5 {[%clk 0:01:08]}  Be8 {[%clk 0:00:58]} 22. Ndf3 {[%clk 0:01:07]}  Nd7 {[%clk 0:00:42]} 23. Nxd7 {[%clk 0:01:07]}  Rxd7 {[%clk 0:00:42]} 24. Be4 {[%clk 0:01:08]}  Rad8 {[%clk 0:00:42]} 25. h4 {[%clk 0:01:06]}  b6 {[%clk 0:00:40]} 26. h5 {[%clk 0:01:06]}  Qc5 {[%clk 0:00:37]} 27. Qf4 {[%clk 0:01:02]}  Bc3 {[%clk 0:00:25]} 28. Re3 {[%clk 0:00:59]}  Bg7 {[%clk 0:00:20]} 29. Kg2 {[%clk 0:00:44]}  Rd1 {[%clk 0:00:17]} 30. Rxd1 {[%clk 0:00:41]}  Rxd1 {[%clk 0:00:18]} 31. Qb8 {[%clk 0:00:41]}  Qe7 {[%clk 0:00:18]} 32. hxg6 {[%clk 0:00:41]}  hxg6 {[%clk 0:00:18]} 33. Qf4 {[%clk 0:00:35]}  Rd8 {[%clk 0:00:17]} 34. a4 {[%clk 0:00:31]}  Qd6 {[%clk 0:00:16]} 35. Qh4 {[%clk 0:00:31]}  f5 {[%clk 0:00:15]} 36. Rd3 {[%clk 0:00:30]}  fxe4 {[%clk 0:00:13]} 37. Rxd6 {[%clk 0:00:27]}  exf3+ {[%clk 0:00:13]} 38. Kxf3 {[%clk 0:00:28]}  Rxd6 {[%clk 0:00:12]} 39. Qe7 {[%clk 0:00:28]}  Bc6+ {[%clk 0:00:12]} 40. Ke2 {[%clk 0:00:29]}  Bf8 {[%clk 0:00:10]} 41. Qxa7 {[%clk 0:00:28]}  e5 {[%clk 0:00:10]} 42. Qb8 {[%clk 0:00:23]}  Re6 {[%clk 0:00:08]} 43. Ke3 {[%clk 0:00:21]}  Kf7 {[%clk 0:00:08]} 44. Qc7+ {[%clk 0:00:19]}  Kf6 {[%clk 0:00:05]} 45. f3 {[%clk 0:00:16]}  Bc5+ {[%clk 0:00:03]} 46. Ke2 {[%clk 0:00:17]}  Rd6 {[%clk 0:00:03]} 47. a5 {[%clk 0:00:14]}  bxa5 {[%clk 0:00:02]} 48. Qxa5 {[%clk 0:00:15]}  Bd4 {[%clk 0:00:02]} 49. b4 {[%clk 0:00:14]}  Rd7 {[%clk 0:00:02]} 50. b5 {[%clk 0:00:14]}  Bb7 {[%clk 0:00:02]} 51. Qb4 {[%clk 0:00:14]}  Ke6 {[%clk 0:00:02]} 52. c5 {[%clk 0:00:14]}  Bd5 {[%clk 0:00:02]} 53. c6 {[%clk 0:00:14]}  Rf7 {[%clk 0:00:03]} 54. f4 {[%clk 0:00:06]}  Kf5 {[%clk 0:00:02]} 55. g4+ {[%clk 0:00:04]}  Kxf4 {[%clk 0:00:02]} 56. Qd6 {[%clk 0:00:05]}  Bf3+ {[%clk 0:00:02]} 57. Kd3 {[%clk 0:00:04]}  Bxg4 {[%clk 0:00:03]} 58. c7 {[%clk 0:00:04]}  Bf5+ {[%clk 0:00:03]} 59. Kc4 {[%clk 0:00:05]}  Ke3 {[%clk 0:00:02]} 60. Qc6 {[%clk 0:00:05]}  Bd3+ {[%clk 0:00:02]} 61. Kb4 {[%clk 0:00:05]}  Bf5 {[%clk 0:00:02]} 62. c8=Q {[%clk 0:00:04]}  Bxc8 {[%clk 0:00:02]} 63. Qxc8 {[%clk 0:00:05]}  Rf6 {[%clk 0:00:03]} 64. Qg4 {[%clk 0:00:06]}  e4 {[%clk 0:00:02]} 65. Kc4 {[%clk 0:00:06]}  Rf3 {[%clk 0:00:01]} 66. Qxg6 {[%clk 0:00:06]}  Bb2 {[%clk 0:00:01]} 67. Qg5+ {[%clk 0:00:07]}  Ke2 {[%clk 0:00:01]} 68. Qg2+ {[%clk 0:00:08]}  Rf2 {[%clk 0:00:01]} 69. Qxe4+ {[%clk 0:00:08]}  Kd2 {[%clk 0:00:02]} 70. Qd3+ {[%clk 0:00:09]}  Kc1 {[%clk 0:00:02]} 71. Qe3+ {[%clk 0:00:09]}  Rd2 {[%clk 0:00:02]} 72. Kb3 {[%clk 0:00:10]}  Bd4 {[%clk 0:00:01]} 73. Qe1+ {[%clk 0:00:10]}  Rd1 {[%clk 0:00:01]} 74. Qe2 {[%clk 0:00:11]}  Rd2 {[%clk 0:00:02]} 75. Qc4+ {[%clk 0:00:11]}  Kd1 {[%clk 0:00:02]} 76. Qf1# {[%clk 0:00:11]} 1-0


[Site "https://www.chess.com"]

[Event "Titled Tuesday Blitz November 9 2021"]
[White "Svane, Rasmus"]
[Black "Mammadov, Zaur"]
[WhiteFideId "4657101"]
[BlackFideId "13401033"]
[WhiteElo "2643"]
[BlackElo "2417"]
[Result "0-1"]
[Round "10"]
[TimeControl "180+1"]
[Date "2021.11.09"]
[WhiteClock "0:00:28"]
[BlackClock "0:00:50"]

1. Nf3 {[%clk 0:03:00]}  d5 {[%clk 0:02:54]} 2. g3 {[%clk 0:03:01]}  Nf6 {[%clk 0:02:53]} 3. Bg2 {[%clk 0:03:01]}  g6 {[%clk 0:02:54]} 4. O-O {[%clk 0:03:01]}  Bg7 {[%clk 0:02:55]} 5. c4 {[%clk 0:03:02]}  c6 {[%clk 0:02:55]} 6. b3 {[%clk 0:03:02]}  Ne4 {[%clk 0:02:52]} 7. d4 {[%clk 0:03:03]}  O-O {[%clk 0:02:52]} 8. Bb2 {[%clk 0:03:03]}  a5 {[%clk 0:02:52]} 9. Nc3 {[%clk 0:03:02]}  Nxc3 {[%clk 0:02:49]} 10. Bxc3 {[%clk 0:03:03]}  a4 {[%clk 0:02:47]} 11. Re1 {[%clk 0:02:56]}  Bf5 {[%clk 0:02:44]} 12. Nh4 {[%clk 0:02:54]}  Be6 {[%clk 0:02:43]} 13. Qc2 {[%clk 0:02:51]}  dxc4 {[%clk 0:02:39]} 14. bxa4 {[%clk 0:02:41]}  Na6 {[%clk 0:02:30]} 15. Red1 {[%clk 0:02:38]}  f5 {[%clk 0:02:23]} 16. Rab1 {[%clk 0:02:27]}  Qc8 {[%clk 0:02:18]} 17. Nf3 {[%clk 0:02:03]}  Nc7 {[%clk 0:02:17]} 18. Nd2 {[%clk 0:01:57]}  Bd5 {[%clk 0:02:14]} 19. f3 {[%clk 0:01:55]}  Ne6 {[%clk 0:02:09]} 20. Nf1 {[%clk 0:01:52]}  c5 {[%clk 0:01:50]} 21. e4 {[%clk 0:01:33]}  fxe4 {[%clk 0:01:49]} 22. fxe4 {[%clk 0:01:33]}  Nxd4 {[%clk 0:01:38]} 23. Bxd4 {[%clk 0:01:24]}  cxd4 {[%clk 0:01:39]} 24. exd5 {[%clk 0:01:23]}  d3 {[%clk 0:01:37]} 25. Qc1 {[%clk 0:01:16]}  Qc5+ {[%clk 0:01:18]} 26. Kh1 {[%clk 0:01:16]}  Rf2 {[%clk 0:01:16]} 27. Rxd3 {[%clk 0:01:11]}  Raf8 {[%clk 0:00:57]} 28. Rd2 {[%clk 0:00:43]}  c3 {[%clk 0:00:55]} 29. Rxf2 {[%clk 0:00:37]}  Rxf2 {[%clk 0:00:53]} 30. Qe3 {[%clk 0:00:31]}  Rxf1+ {[%clk 0:00:52]} 31. Rxf1 {[%clk 0:00:30]}  Qxe3 {[%clk 0:00:53]} 32. Bh3 {[%clk 0:00:31]}  Bf6 {[%clk 0:00:50]} 33. Bg2 {[%clk 0:00:27]}  c2 {[%clk 0:00:50]} 34. h4 {[%clk 0:00:28]} 0-1


[Site "https://www.chess.com"]

[Event "Titled Tuesday Blitz November 9 2021"]
[White "Tari, Aryan"]
[Black "Khusnutdinov, Rustam"]
[WhiteFideId "1510045"]
[BlackFideId "13701703"]
[WhiteElo "2656"]
[BlackElo "2571"]
[Result "0-1"]
[Round "10"]
[TimeControl "180+1"]
[Date "2021.11.09"]
[WhiteClock "0:00:14"]
[BlackClock "0:00:16"]

1. e4 {[%clk 0:03:00]}  e5 {[%clk 0:02:54]} 2. Nf3 {[%clk 0:03:00]}  Nf6 {[%clk 0:02:54]} 3. Nc3 {[%clk 0:02:50]}  Bb4 {[%clk 0:02:44]} 4. Nxe5 {[%clk 0:02:40]}  O-O {[%clk 0:02:43]} 5. Be2 {[%clk 0:02:39]}  Re8 {[%clk 0:02:42]} 6. Nd3 {[%clk 0:02:40]}  Bxc3 {[%clk 0:02:42]} 7. dxc3 {[%clk 0:02:41]}  Nxe4 {[%clk 0:02:43]} 8. O-O {[%clk 0:02:41]}  d6 {[%clk 0:02:43]} 9. Re1 {[%clk 0:02:24]}  Nd7 {[%clk 0:02:41]} 10. Bf3 {[%clk 0:02:24]}  Ndf6 {[%clk 0:02:35]} 11. h3 {[%clk 0:02:19]}  b6 {[%clk 0:02:27]} 12. Bf4 {[%clk 0:02:12]}  Bb7 {[%clk 0:02:27]} 13. c4 {[%clk 0:02:12]}  Qd7 {[%clk 0:02:21]} 14. c3 {[%clk 0:01:57]}  Re7 {[%clk 0:02:20]} 15. Bh2 {[%clk 0:01:50]}  Rae8 {[%clk 0:02:19]} 16. Qc2 {[%clk 0:01:49]}  Qc8 {[%clk 0:02:12]} 17. Nf4 {[%clk 0:01:44]}  Ng5 {[%clk 0:02:06]} 18. Be2 {[%clk 0:01:39]}  Be4 {[%clk 0:01:43]} 19. Qd2 {[%clk 0:01:38]}  Qb7 {[%clk 0:01:36]} 20. Bf1 {[%clk 0:01:37]}  h6 {[%clk 0:01:30]} 21. h4 {[%clk 0:01:29]}  Ngh7 {[%clk 0:01:29]} 22. f3 {[%clk 0:01:27]}  Bc6 {[%clk 0:01:29]} 23. Rxe7 {[%clk 0:01:26]}  Rxe7 {[%clk 0:01:29]} 24. Re1 {[%clk 0:01:26]}  Re8 {[%clk 0:01:24]} 25. Rxe8+ {[%clk 0:01:13]}  Bxe8 {[%clk 0:01:25]} 26. Bd3 {[%clk 0:01:11]}  Qc6 {[%clk 0:01:22]} 27. Bg3 {[%clk 0:01:04]}  Nf8 {[%clk 0:01:21]} 28. Qe2 {[%clk 0:01:04]}  N8d7 {[%clk 0:01:13]} 29. Nd5 {[%clk 0:00:57]}  Qb7 {[%clk 0:01:06]} 30. Qe7 {[%clk 0:00:52]}  Qb8 {[%clk 0:01:02]} 31. Bf5 {[%clk 0:00:39]}  Nxd5 {[%clk 0:00:59]} 32. cxd5 {[%clk 0:00:40]}  Nf6 {[%clk 0:01:00]} 33. c4 {[%clk 0:00:40]}  b5 {[%clk 0:00:56]} 34. b3 {[%clk 0:00:37]}  a5 {[%clk 0:00:48]} 35. c5 {[%clk 0:00:35]}  Nxd5 {[%clk 0:00:45]} 36. Qe4 {[%clk 0:00:30]}  Nf6 {[%clk 0:00:43]} 37. Qd4 {[%clk 0:00:31]}  Qa7 {[%clk 0:00:39]} 38. Bf2 {[%clk 0:00:29]}  dxc5 {[%clk 0:00:33]} 39. Qd8 {[%clk 0:00:29]}  Qb6 {[%clk 0:00:26]} 40. Bg3 {[%clk 0:00:23]}  c4+ {[%clk 0:00:24]} 41. Kh2 {[%clk 0:00:23]}  cxb3 {[%clk 0:00:25]} 42. axb3 {[%clk 0:00:24]}  Qc5 {[%clk 0:00:23]} 43. Be4 {[%clk 0:00:15]}  a4 {[%clk 0:00:19]} 44. bxa4 {[%clk 0:00:15]}  bxa4 {[%clk 0:00:20]} 45. Bxc7 {[%clk 0:00:16]}  a3 {[%clk 0:00:20]} 46. Bd6 {[%clk 0:00:16]}  Qd4 {[%clk 0:00:20]} 47. Bb1 {[%clk 0:00:12]}  Qxh4+ {[%clk 0:00:18]} 48. Kg1 {[%clk 0:00:13]}  Qe1+ {[%clk 0:00:19]} 49. Kh2 {[%clk 0:00:13]}  Qxb1 {[%clk 0:00:19]} 50. Qe7 {[%clk 0:00:14]}  a2 {[%clk 0:00:16]} 0-1


[Site "https://www.chess.com"]

[Event "Titled Tuesday Blitz November 9 2021"]
[White "Weetik, Vjacheslav"]
[Black "Suarez Garcia, Carlos"]
[WhiteFideId "4153472"]
[BlackFideId "22230858"]
[WhiteElo "2469"]
[BlackElo "2487"]
[Result "1-0"]
[Round "10"]
[TimeControl "180+1"]
[Date "2021.11.09"]
[WhiteClock "0:00:09"]
[BlackClock "0:00:10"]

1. d4 {[%clk 0:02:59]}  d5 {[%clk 0:02:59]} 2. Bf4 {[%clk 0:02:59]}  e6 {[%clk 0:02:59]} 3. e3 {[%clk 0:02:59]}  Nf6 {[%clk 0:02:59]} 4. Nd2 {[%clk 0:02:59]}  c5 {[%clk 0:03:00]} 5. c3 {[%clk 0:02:59]}  Bd6 {[%clk 0:03:00]} 6. Bxd6 {[%clk 0:02:59]}  Qxd6 {[%clk 0:03:00]} 7. Bd3 {[%clk 0:03:00]}  Nc6 {[%clk 0:02:59]} 8. f4 {[%clk 0:03:00]}  cxd4 {[%clk 0:02:56]} 9. cxd4 {[%clk 0:03:00]}  O-O {[%clk 0:02:56]} 10. Ngf3 {[%clk 0:03:00]}  b6 {[%clk 0:02:55]} 11. Ne5 {[%clk 0:02:49]}  Bb7 {[%clk 0:02:46]} 12. O-O {[%clk 0:02:48]}  Rac8 {[%clk 0:02:45]} 13. a3 {[%clk 0:02:46]}  g6 {[%clk 0:02:45]} 14. Qe1 {[%clk 0:02:43]}  Nd7 {[%clk 0:02:36]} 15. Qh4 {[%clk 0:02:42]}  f6 {[%clk 0:02:27]} 16. Ng4 {[%clk 0:02:33]}  f5 {[%clk 0:02:19]} 17. Ne5 {[%clk 0:02:21]}  Ndxe5 {[%clk 0:02:19]} 18. fxe5 {[%clk 0:02:21]}  Qe7 {[%clk 0:02:20]} 19. Qg3 {[%clk 0:02:17]}  Rc7 {[%clk 0:02:17]} 20. h4 {[%clk 0:02:16]}  Kg7 {[%clk 0:02:16]} 21. Nf3 {[%clk 0:02:14]}  h6 {[%clk 0:02:14]} 22. Rf2 {[%clk 0:02:07]}  Na5 {[%clk 0:02:13]} 23. Qf4 {[%clk 0:01:50]}  Kh7 {[%clk 0:02:02]} 24. Kh2 {[%clk 0:01:44]}  Qd8 {[%clk 0:01:52]} 25. g4 {[%clk 0:01:29]}  Rg7 {[%clk 0:01:48]} 26. Rg1 {[%clk 0:01:24]}  Rfg8 {[%clk 0:01:40]} 27. Rfg2 {[%clk 0:01:19]}  Qf8 {[%clk 0:01:19]} 28. h5 {[%clk 0:00:50]}  g5 {[%clk 0:01:10]} 29. gxf5 {[%clk 0:00:50]}  exf5 {[%clk 0:00:30]} 30. Qxf5+ {[%clk 0:00:50]}  Kh8 {[%clk 0:00:31]} 31. e6 {[%clk 0:00:45]}  Nc6 {[%clk 0:00:28]} 32. Ne5 {[%clk 0:00:29]}  Nxe5 {[%clk 0:00:24]} 33. Qxe5 {[%clk 0:00:27]}  Qf3 {[%clk 0:00:25]} 34. Bg6 {[%clk 0:00:23]}  Bc8 {[%clk 0:00:24]} 35. Rg3 {[%clk 0:00:22]}  Qf8 {[%clk 0:00:20]} 36. Bf7 {[%clk 0:00:22]}  Kh7 {[%clk 0:00:17]} 37. Qxd5 {[%clk 0:00:19]}  Qe7 {[%clk 0:00:12]} 38. Qf5+ {[%clk 0:00:18]}  Kh8 {[%clk 0:00:12]} 39. d5 {[%clk 0:00:19]}  Qc7 {[%clk 0:00:11]} 40. Qf6 {[%clk 0:00:17]}  Kh7 {[%clk 0:00:11]} 41. Bxg8+ {[%clk 0:00:12]}  Kxg8 {[%clk 0:00:12]} 42. Rf1 {[%clk 0:00:12]}  Qc2+ {[%clk 0:00:08]} 43. Rf2 {[%clk 0:00:11]}  Qe4 {[%clk 0:00:08]} 44. Qd8+ {[%clk 0:00:09]}  Kh7 {[%clk 0:00:08]} 45. Qxc8 {[%clk 0:00:09]}  Qh4+ {[%clk 0:00:08]} 46. Kg2 {[%clk 0:00:09]}  Qe4+ {[%clk 0:00:09]} 47. Kg1 {[%clk 0:00:10]}  Qb1+ {[%clk 0:00:09]} 48. Kh2 {[%clk 0:00:09]}  Qe4 {[%clk 0:00:10]} 49. Qc2 {[%clk 0:00:09]} 1-0


[Site "https://www.chess.com"]

[Event "Titled Tuesday Blitz November 9 2021"]
[White "Yeletsky, Ivan"]
[Black "Costachi, Mihnea"]
[WhiteFideId "24180327"]
[BlackFideId "1217518"]
[WhiteElo "2352"]
[BlackElo "2482"]
[Result "0-1"]
[Round "10"]
[TimeControl "180+1"]
[Date "2021.11.09"]
[WhiteClock "0:01:40"]
[BlackClock "0:01:13"]

1. e4 {[%clk 0:03:00]}  e5 {[%clk 0:02:59]} 2. Nf3 {[%clk 0:03:00]}  Nc6 {[%clk 0:02:59]} 3. Bb5 {[%clk 0:03:01]}  a6 {[%clk 0:02:59]} 4. Ba4 {[%clk 0:03:00]}  d6 {[%clk 0:03:00]} 5. O-O {[%clk 0:02:58]}  Bd7 {[%clk 0:03:00]} 6. c3 {[%clk 0:02:58]}  g6 {[%clk 0:02:59]} 7. d4 {[%clk 0:02:58]}  Bg7 {[%clk 0:03:00]} 8. Re1 {[%clk 0:02:56]}  Nf6 {[%clk 0:03:00]} 9. h3 {[%clk 0:02:56]}  O-O {[%clk 0:03:00]} 10. Nbd2 {[%clk 0:02:49]}  Re8 {[%clk 0:02:59]} 11. Bb3 {[%clk 0:02:47]}  h6 {[%clk 0:02:58]} 12. a3 {[%clk 0:02:44]}  Qe7 {[%clk 0:02:56]} 13. Nf1 {[%clk 0:02:39]}  exd4 {[%clk 0:02:53]} 14. cxd4 {[%clk 0:02:40]}  Na5 {[%clk 0:02:38]} 15. Bc2 {[%clk 0:02:39]}  c5 {[%clk 0:02:34]} 16. dxc5 {[%clk 0:02:31]}  dxc5 {[%clk 0:02:33]} 17. e5 {[%clk 0:02:32]}  Nh7 {[%clk 0:02:31]} 18. Ne3 {[%clk 0:02:32]}  Be6 {[%clk 0:02:26]} 19. Nd5 {[%clk 0:02:30]}  Qd7 {[%clk 0:02:20]} 20. Nb6 {[%clk 0:02:25]}  Qxd1 {[%clk 0:02:18]} 21. Rxd1 {[%clk 0:02:26]}  Rad8 {[%clk 0:02:18]} 22. Be3 {[%clk 0:02:26]}  c4 {[%clk 0:02:04]} 23. Bc5 {[%clk 0:02:21]}  Ng5 {[%clk 0:01:58]} 24. Nxg5 {[%clk 0:02:19]}  hxg5 {[%clk 0:01:59]} 25. Ba4 {[%clk 0:02:09]}  Nc6 {[%clk 0:01:55]} 26. Bxc6 {[%clk 0:02:09]}  bxc6 {[%clk 0:01:55]} 27. Rxd8 {[%clk 0:02:00]}  Rxd8 {[%clk 0:01:55]} 28. Bd6 {[%clk 0:02:01]}  f6 {[%clk 0:01:51]} 29. Be7 {[%clk 0:02:01]}  Rb8 {[%clk 0:01:44]} 30. exf6 {[%clk 0:01:50]}  Rxb6 {[%clk 0:01:44]} 31. fxg7 {[%clk 0:01:51]}  Kxg7 {[%clk 0:01:45]} 32. Bc5 {[%clk 0:01:50]}  Rb5 {[%clk 0:01:40]} 33. Bd4+ {[%clk 0:01:50]}  Kf7 {[%clk 0:01:40]} 34. Re1 {[%clk 0:01:50]}  g4 {[%clk 0:01:39]} 35. h4 {[%clk 0:01:49]}  Rd5 {[%clk 0:01:38]} 36. Bc3 {[%clk 0:01:48]}  Rd3 {[%clk 0:01:34]} 37. Re4 {[%clk 0:01:44]}  Rd1+ {[%clk 0:01:23]} 38. Kh2 {[%clk 0:01:44]}  Rd3 {[%clk 0:01:24]} 39. Rf4+ {[%clk 0:01:42]}  Ke7 {[%clk 0:01:24]} 40. Bb4+ {[%clk 0:01:41]}  Kd7 {[%clk 0:01:22]} 41. Rf8 {[%clk 0:01:42]}  Bf5 {[%clk 0:01:16]} 42. Rf7+ {[%clk 0:01:40]}  Ke6 {[%clk 0:01:13]} 43. Rf6+ {[%clk 0:01:40]}  Kxf6 {[%clk 0:01:13]} 0-1


[Site "https://www.chess.com"]